[Event "*** Titled Tuesday Blitz"]
[Site "Chess.com"]
[Date "2021.02.02"]
[Round "4"]
[White "DamianoLew95"]
[Black "AniJak"]
[Result "1-0"]
[WhiteElo "2581"]
[BlackElo "2285"]
[TimeControl "180+1"]
[EndTime "10:42:32 PST"]
[Termination "DamianoLew95 won by resignation"]

1. e4 {[%clk 0:03:00.9]} 1... c6 {[%clk 0:02:59]} 2. d4 {[%clk 0:03:00.5]} 2...
d5 {[%clk 0:02:58.6]} 3. Nc3 {[%clk 0:03:00.4]} 3... dxe4 {[%clk 0:02:58.7]} 4.
Nxe4 {[%clk 0:03:00.4]} 4... Nf6 {[%clk 0:02:58.8]} 5. Nxf6+ {[%clk 0:03:00.2]}
5... exf6 {[%clk 0:02:59.1]} 6. c3 {[%clk 0:02:58.3]} 6... Bd6 {[%clk
0:02:58.6]} 7. Bd3 {[%clk 0:02:57.7]} 7... O-O {[%clk 0:02:58.3]} 8. Qc2 {[%clk
0:02:57.3]} 8... Re8+ {[%clk 0:02:58]} 9. Ne2 {[%clk 0:02:57.4]} 9... h5 {[%clk
0:02:58.5]} 10. Be3 {[%clk 0:02:54.6]} 10... Nd7 {[%clk 0:02:51.3]} 11. h3
{[%clk 0:02:52.5]} 11... Nf8 {[%clk 0:02:50.3]} 12. g4 {[%clk 0:02:47.8]} 12...
h4 {[%clk 0:02:45.7]} 13. O-O-O {[%clk 0:02:44.6]} 13... Qa5 {[%clk 0:02:39.4]}
14. Kb1 {[%clk 0:02:42.1]} 14... Be6 {[%clk 0:02:39.3]} 15. b3 {[%clk
0:02:36.1]} 15... b5 {[%clk 0:02:28.7]} 16. Nf4 {[%clk 0:02:32]} 16... Bxf4
{[%clk 0:02:21.8]} 17. Bxf4 {[%clk 0:02:31.9]} 17... Bd5 {[%clk 0:02:22.7]} 18.
Rhg1 {[%clk 0:02:30.2]} 18... c5 {[%clk 0:02:08.3]} 19. dxc5 {[%clk 0:02:22.2]}
19... Bf3 {[%clk 0:02:07.5]} 20. Rde1 {[%clk 0:02:17.2]} 20... b4 {[%clk
0:01:59.4]} 21. cxb4 {[%clk 0:02:10.6]} 21... Qxb4 {[%clk 0:01:59.1]} 22. Bd2
{[%clk 0:01:56.7]} 22... Qd4 {[%clk 0:01:56.9]} 23. Be3 {[%clk 0:01:52.4]} 23...
Qd5 {[%clk 0:01:16.5]} 24. g5 {[%clk 0:01:49.5]} 24... fxg5 {[%clk 0:01:16.7]}
25. Rxg5 {[%clk 0:01:25.9]} 25... Qxg5 {[%clk 0:01:16.3]} 26. Bxg5 {[%clk
0:01:26.4]} 26... Rxe1+ {[%clk 0:01:15.8]} 27. Kb2 {[%clk 0:01:25.5]} 27... Ne6
{[%clk 0:01:10.6]} 28. Be3 {[%clk 0:01:23.9]} 28... Rc8 {[%clk 0:00:56.7]} 29.
b4 {[%clk 0:01:20]} 29... Rh1 {[%clk 0:00:43.5]} 30. Bf5 {[%clk 0:01:14.2]}
30... a6 {[%clk 0:00:28.1]} 31. Bxe6 {[%clk 0:01:12.5]} 31... fxe6 {[%clk
0:00:28.1]} 32. Qg6 {[%clk 0:01:11.5]} 32... Bd5 {[%clk 0:00:21.5]} 33. Bd4
{[%clk 0:01:02.5]} 33... Rc7 {[%clk 0:00:21.6]} 34. Qe8+ {[%clk 0:01:02.1]}
34... Kh7 {[%clk 0:00:20.1]} 35. Be5 {[%clk 0:01:00.6]} 35... Rb7 {[%clk
0:00:18.8]} 36. a3 {[%clk 0:00:46.7]} 36... Re1 {[%clk 0:00:18.5]} 37. Bd4
{[%clk 0:00:34.7]} 37... Re4 {[%clk 0:00:18.1]} 38. Kc3 {[%clk 0:00:31]} 38...
Rf4 {[%clk 0:00:15.2]} 39. Be3 {[%clk 0:00:25.4]} 39... Rf3 {[%clk 0:00:13.3]}
40. Qh5+ {[%clk 0:00:24.4]} 40... Kg8 {[%clk 0:00:13.6]} 41. Qxh4 {[%clk
0:00:22.7]} 41... Rbf7 {[%clk 0:00:13.8]} 42. Qd8+ {[%clk 0:00:21.4]} 42... Kh7
{[%clk 0:00:13.3]} 43. h4 {[%clk 0:00:18.2]} 43... Rh3 {[%clk 0:00:12.9]} 44.
Qe8 {[%clk 0:00:16.2]} 44... Rff3 {[%clk 0:00:12.4]} 45. c6 {[%clk 0:00:16]}
45... Rh1 {[%clk 0:00:06.6]} 46. Kd2 {[%clk 0:00:13.4]} 46... Ra1 {[%clk
0:00:04.9]} 47. c7 {[%clk 0:00:12.7]} 47... Ra2+ {[%clk 0:00:05.2]} 48. Kd3
{[%clk 0:00:11.7]} 48... Bc6 {[%clk 0:00:01.5]} 49. Qxc6 {[%clk 0:00:09.9]} 1-0

[Event "*** Titled Tuesday Blitz"]
[Site "Chess.com"]
[Date "2021.02.02"]
[Round "4"]
[White "GCamachoMartinez"]
[Black "Meri-Arabidze"]
[Result "0-1"]
[WhiteElo "2424"]
[BlackElo "2612"]
[TimeControl "180+1"]
[EndTime "10:42:32 PST"]
[Termination "Meri-Arabidze won on time"]

1. d4 {[%clk 0:03:00.9]} 1... d5 {[%clk 0:02:57.5]} 2. c4 {[%clk 0:03:01]} 2...
e6 {[%clk 0:02:56.3]} 3. Nf3 {[%clk 0:02:59.7]} 3... Nf6 {[%clk 0:02:56.8]} 4.
g3 {[%clk 0:02:59.8]} 4... Bb4+ {[%clk 0:02:55.7]} 5. Bd2 {[%clk 0:02:57.9]}
5... Be7 {[%clk 0:02:56.3]} 6. Bg2 {[%clk 0:02:55.5]} 6... O-O {[%clk 0:02:57]}
7. O-O {[%clk 0:02:53.4]} 7... Nbd7 {[%clk 0:02:57.6]} 8. Qc2 {[%clk 0:02:47.4]}
8... Ne4 {[%clk 0:02:58.1]} 9. Bf4 {[%clk 0:02:34.4]} 9... c6 {[%clk 0:02:58]}
10. Nc3 {[%clk 0:02:26.3]} 10... g5 {[%clk 0:02:57.8]} 11. Be3 {[%clk
0:02:16.8]} 11... Nd6 {[%clk 0:02:57.2]} 12. b3 {[%clk 0:01:57.2]} 12... Nf5
{[%clk 0:02:44.9]} 13. Bd2 {[%clk 0:01:51.5]} 13... g4 {[%clk 0:02:41.4]} 14.
Ne1 {[%clk 0:01:47.9]} 14... Nxd4 {[%clk 0:02:39.6]} 15. Qd1 {[%clk 0:01:38.6]}
15... Nf5 {[%clk 0:02:15.2]} 16. e4 {[%clk 0:01:35.2]} 16... dxe4 {[%clk
0:02:15.2]} 17. Qxg4+ {[%clk 0:01:34.2]} 17... Kh8 {[%clk 0:02:13.1]} 18. Nxe4
{[%clk 0:01:31]} 18... f6 {[%clk 0:01:57.3]} 19. Rd1 {[%clk 0:01:22.8]} 19...
Ne5 {[%clk 0:01:53.9]} 20. Qf4 {[%clk 0:01:14.6]} 20... Qe8 {[%clk 0:01:51.2]}
21. Bc3 {[%clk 0:01:08]} 21... Ng6 {[%clk 0:01:51]} 22. Qc1 {[%clk 0:01:04.8]}
22... a5 {[%clk 0:01:48.1]} 23. Nf3 {[%clk 0:01:03.6]} 23... a4 {[%clk
0:01:46.9]} 24. Qb2 {[%clk 0:01:03.3]} 24... e5 {[%clk 0:01:38.3]} 25. Rfe1
{[%clk 0:00:57.7]} 25... Qf7 {[%clk 0:01:37]} 26. h4 {[%clk 0:00:52.7]} 26... h5
{[%clk 0:01:28.3]} 27. Qe2 {[%clk 0:00:51.7]} 27... Kg8 {[%clk 0:01:20.4]} 28.
Nh2 {[%clk 0:00:36.9]} 28... Ng7 {[%clk 0:01:20.3]} 29. Nf1 {[%clk 0:00:36]}
29... Bg4 {[%clk 0:01:19.7]} 30. Bf3 {[%clk 0:00:33.9]} 30... Bxf3 {[%clk
0:01:16.6]} 31. Qxf3 {[%clk 0:00:34.8]} 31... axb3 {[%clk 0:01:15.8]} 32. axb3
{[%clk 0:00:34.5]} 32... f5 {[%clk 0:01:15.5]} 33. Ng5 {[%clk 0:00:31.7]} 33...
Bxg5 {[%clk 0:01:15.2]} 34. hxg5 {[%clk 0:00:32.6]} 34... e4 {[%clk 0:01:06.9]}
35. Qe3 {[%clk 0:00:30.5]} 35... Rae8 {[%clk 0:01:04.7]} 36. Rd6 {[%clk
0:00:24.7]} 36... Ne6 {[%clk 0:00:53.1]} 37. Qe2 {[%clk 0:00:20.6]} 37... f4
{[%clk 0:00:50.3]} 38. Qxh5 {[%clk 0:00:12]} 38... fxg3 {[%clk 0:00:49.1]} 39.
fxg3 {[%clk 0:00:12.5]} 39... Re7 {[%clk 0:00:33.9]} 40. Nh2 {[%clk 0:00:10.8]}
40... Qf2+ {[%clk 0:00:20.2]} 41. Kh1 {[%clk 0:00:10.9]} 41... Rh7 {[%clk
0:00:20.3]} 42. Qxh7+ {[%clk 0:00:07.6]} 42... Kxh7 {[%clk 0:00:19.5]} 43. Rd7+
{[%clk 0:00:06.3]} 43... Rf7 {[%clk 0:00:18.7]} 44. Rxf7+ {[%clk 0:00:05.5]}
44... Qxf7 {[%clk 0:00:19.6]} 45. Rf1 {[%clk 0:00:05.3]} 45... Qd7 {[%clk
0:00:18.1]} 46. Ng4 {[%clk 0:00:05.9]} 46... Qd3 {[%clk 0:00:17.1]} 47. Nf6+
{[%clk 0:00:06]} 47... Kh8 {[%clk 0:00:14.3]} 48. Ba1 {[%clk 0:00:01.9]} 48...
Qxf1+ {[%clk 0:00:13.7]} 0-1

[Event "*** Titled Tuesday Blitz"]
[Site "Chess.com"]
[Date "2021.02.02"]
[Round "4"]
[White "PowerThinking2650"]
[Black "Lion-Al-Messi"]
[Result "0-1"]
[WhiteElo "2386"]
[BlackElo "2570"]
[TimeControl "180+1"]
[EndTime "10:42:33 PST"]
[Termination "Lion-Al-Messi won by resignation"]

1. e4 {[%clk 0:03:00.9]} 1... e6 {[%clk 0:03:00.3]} 2. d4 {[%clk 0:03:00.5]}
2... d5 {[%clk 0:03:00.9]} 3. Nd2 {[%clk 0:03:01]} 3... c5 {[%clk 0:03:00.8]} 4.
Ngf3 {[%clk 0:03:00.5]} 4... cxd4 {[%clk 0:03:00.7]} 5. exd5 {[%clk 0:03:00.7]}
5... Qxd5 {[%clk 0:03:00.3]} 6. Bc4 {[%clk 0:03:01.2]} 6... Qd6 {[%clk
0:03:00.5]} 7. O-O {[%clk 0:03:01.8]} 7... Nf6 {[%clk 0:03:00.8]} 8. Nb3 {[%clk
0:03:01.8]} 8... Nc6 {[%clk 0:03:01.4]} 9. Nbxd4 {[%clk 0:03:02]} 9... Nxd4
{[%clk 0:03:02.3]} 10. Nxd4 {[%clk 0:03:02.7]} 10... Be7 {[%clk 0:03:02.7]} 11.
b3 {[%clk 0:02:47.8]} 11... O-O {[%clk 0:03:00.1]} 12. Bb2 {[%clk 0:02:47.6]}
12... a6 {[%clk 0:02:59]} 13. a4 {[%clk 0:02:45.7]} 13... e5 {[%clk 0:02:58.5]}
14. Nf3 {[%clk 0:02:40.3]} 14... e4 {[%clk 0:02:58.8]} 15. Ne5 {[%clk
0:02:15.1]} 15... Bf5 {[%clk 0:02:56.3]} 16. Qxd6 {[%clk 0:02:04.6]} 16... Bxd6
{[%clk 0:02:56.5]} 17. Rad1 {[%clk 0:02:04]} 17... Be7 {[%clk 0:02:54.5]} 18. h3
{[%clk 0:01:52.5]} 18... Rad8 {[%clk 0:02:53.7]} 19. Rxd8 {[%clk 0:01:49.3]}
19... Bxd8 {[%clk 0:02:52]} 20. Ba3 {[%clk 0:01:46.9]} 20... Bc7 {[%clk
0:02:21]} 21. Bxf8 {[%clk 0:01:29.5]} 21... Kxf8 {[%clk 0:02:21.9]} 22. f4
{[%clk 0:00:33.2]} 22... exf3 {[%clk 0:02:21.7]} 23. Nxf3 {[%clk 0:00:32.8]}
23... Bxc2 {[%clk 0:02:21.4]} 24. Re1 {[%clk 0:00:26.2]} 24... Bb6+ {[%clk
0:02:16.1]} 25. Kh2 {[%clk 0:00:24.6]} 25... Bc7+ {[%clk 0:02:15.4]} 26. Kg1
{[%clk 0:00:24.8]} 26... Bb6+ {[%clk 0:02:06.3]} 27. Kh2 {[%clk 0:00:24.8]}
27... Ne4 {[%clk 0:02:05.8]} 28. Re2 {[%clk 0:00:14.8]} 28... Bb1 {[%clk
0:02:05.8]} 29. Re1 {[%clk 0:00:13.5]} 29... Bc7+ {[%clk 0:02:04.7]} 30. Kg1
{[%clk 0:00:13.5]} 30... Bb6+ {[%clk 0:02:04.3]} 31. Kh2 {[%clk 0:00:13.6]}
31... Nc3 {[%clk 0:02:03.8]} 32. Rc1 {[%clk 0:00:10.8]} 32... Bc7+ {[%clk
0:02:01.4]} 33. Kh1 {[%clk 0:00:10.8]} 33... Ba5 {[%clk 0:01:59.7]} 34. Ne5
{[%clk 0:00:08.9]} 34... f6 {[%clk 0:01:23.5]} 35. Nd7+ {[%clk 0:00:08]} 35...
Ke7 {[%clk 0:01:21.2]} 36. Nc5 {[%clk 0:00:08.2]} 36... b5 {[%clk 0:01:15.8]}
37. axb5 {[%clk 0:00:06.6]} 37... axb5 {[%clk 0:01:16.7]} 38. Nb7 {[%clk
0:00:06.9]} 38... Bb4 {[%clk 0:01:10.5]} 39. Bxb5 {[%clk 0:00:07]} 39... Be4
{[%clk 0:01:05.1]} 40. Re1 {[%clk 0:00:03.7]} 40... f5 {[%clk 0:00:48.4]} 41.
Bc6 {[%clk 0:00:03.2]} 41... g6 {[%clk 0:00:33.6]} 42. Bxe4 {[%clk 0:00:02.8]}
42... Nxe4 {[%clk 0:00:34.5]} 43. Re3 {[%clk 0:00:02.5]} 43... Kd7 {[%clk
0:00:31.4]} 44. Rd3+ {[%clk 0:00:01.8]} 44... Kc7 {[%clk 0:00:28.6]} 45. Rd4
{[%clk 0:00:02.2]} 45... Bc3 {[%clk 0:00:24]} 46. Rc4+ {[%clk 0:00:01.7]} 46...
Kxb7 {[%clk 0:00:23.8]} 47. g4 {[%clk 0:00:01.9]} 47... Be5 {[%clk 0:00:20.7]}
48. gxf5 {[%clk 0:00:02.5]} 48... gxf5 {[%clk 0:00:21.6]} 49. Kg2 {[%clk
0:00:02.8]} 49... h5 {[%clk 0:00:19.5]} 50. Rxe4 {[%clk 0:00:02.7]} 50... fxe4
{[%clk 0:00:19.3]} 51. Kf2 {[%clk 0:00:03.6]} 51... Bf4 {[%clk 0:00:19.3]} 52.
Ke2 {[%clk 0:00:03.8]} 52... e3 {[%clk 0:00:19.5]} 53. Kf3 {[%clk 0:00:03.8]}
53... Kb6 {[%clk 0:00:19.8]} 0-1

[Event "*** Titled Tuesday Blitz"]
[Site "Chess.com"]
[Date "2021.02.02"]
[Round "4"]
[White "LiamVrolijk"]
[Black "Nikolakis2014"]
[Result "1-0"]
[WhiteElo "2845"]
[BlackElo "2643"]
[TimeControl "180+1"]
[EndTime "10:42:34 PST"]
[Termination "LiamVrolijk won by resignation"]

1. d4 {[%clk 0:03:00.9]} 1... Nf6 {[%clk 0:02:59.7]} 2. c4 {[%clk 0:03:00.9]}
2... e6 {[%clk 0:03:00.1]} 3. Nf3 {[%clk 0:03:00.4]} 3... d5 {[%clk 0:03:00]} 4.
Nc3 {[%clk 0:02:59.8]} 4... Bb4 {[%clk 0:02:59.5]} 5. cxd5 {[%clk 0:02:59.5]}
5... exd5 {[%clk 0:02:59.2]} 6. Bg5 {[%clk 0:03:00.1]} 6... h6 {[%clk 0:02:58]}
7. Bh4 {[%clk 0:03:00.2]} 7... O-O {[%clk 0:02:58.2]} 8. e3 {[%clk 0:03:00.5]}
8... Bf5 {[%clk 0:02:58.3]} 9. Be2 {[%clk 0:02:59.4]} 9... Nbd7 {[%clk
0:02:55.6]} 10. Qb3 {[%clk 0:02:53.3]} 10... Qe7 {[%clk 0:02:44.4]} 11. O-O
{[%clk 0:02:48.8]} 11... c6 {[%clk 0:02:41.9]} 12. a3 {[%clk 0:02:40.4]} 12...
Bxc3 {[%clk 0:02:39.6]} 13. bxc3 {[%clk 0:02:38.4]} 13... b5 {[%clk 0:02:38.9]}
14. a4 {[%clk 0:02:35.9]} 14... a6 {[%clk 0:02:39.1]} 15. Nd2 {[%clk 0:02:24.5]}
15... Qe6 {[%clk 0:02:26.8]} 16. Ra2 {[%clk 0:02:14.4]} 16... Nb6 {[%clk
0:02:14.1]} 17. axb5 {[%clk 0:02:01.6]} 17... axb5 {[%clk 0:02:13.2]} 18. Rfa1
{[%clk 0:02:01.5]} 18... Rxa2 {[%clk 0:02:04.4]} 19. Rxa2 {[%clk 0:02:02.4]}
19... Ne4 {[%clk 0:01:49.6]} 20. Nxe4 {[%clk 0:01:49.8]} 20... Qxe4 {[%clk
0:01:39.7]} 21. Bg3 {[%clk 0:01:50]} 21... Na4 {[%clk 0:01:34.7]} 22. Bd6 {[%clk
0:01:39.9]} 22... Re8 {[%clk 0:01:32.9]} 23. Bb4 {[%clk 0:01:35.8]} 23... Bg4
{[%clk 0:01:22.4]} 24. Bf1 {[%clk 0:01:32.9]} 24... Qg6 {[%clk 0:01:16.4]} 25.
Qc2 {[%clk 0:01:14.2]} 25... Bf5 {[%clk 0:01:15.5]} 26. Qd1 {[%clk 0:01:08.6]}
26... h5 {[%clk 0:01:13]} 27. Ra1 {[%clk 0:01:00.8]} 27... h4 {[%clk 0:01:10]}
28. Qf3 {[%clk 0:00:58.9]} 28... f6 {[%clk 0:00:50.4]} 29. Qf4 {[%clk
0:00:57.2]} 29... h3 {[%clk 0:00:41.2]} 30. g3 {[%clk 0:00:57.1]} 30... Qg4
{[%clk 0:00:38.1]} 31. f3 {[%clk 0:00:53.2]} 31... Qxf4 {[%clk 0:00:35.6]} 32.
exf4 {[%clk 0:00:54.1]} 32... g5 {[%clk 0:00:31.4]} 33. fxg5 {[%clk 0:00:52.3]}
33... fxg5 {[%clk 0:00:31.3]} 34. g4 {[%clk 0:00:52]} 34... Bc2 {[%clk 0:00:31]}
35. Kf2 {[%clk 0:00:50.5]} 35... Bb3 {[%clk 0:00:30.2]} 36. Bxh3 {[%clk
0:00:37.7]} 36... Nb2 {[%clk 0:00:28.8]} 37. Bg2 {[%clk 0:00:32.7]} 37... Nd3+
{[%clk 0:00:17.3]} 38. Kg3 {[%clk 0:00:33]} 38... Nf4 {[%clk 0:00:17.3]} 39. Bf1
{[%clk 0:00:31.8]} 39... Bc4 {[%clk 0:00:17]} 40. h4 {[%clk 0:00:24]} 40... Bxf1
{[%clk 0:00:14.7]} 41. Rxf1 {[%clk 0:00:24.9]} 41... Ne2+ {[%clk 0:00:14.7]} 42.
Kf2 {[%clk 0:00:24.7]} 42... Nf4 {[%clk 0:00:11.3]} 43. hxg5 {[%clk 0:00:24.5]}
43... Kf7 {[%clk 0:00:11.7]} 44. Rh1 {[%clk 0:00:20.7]} 44... Kg6 {[%clk
0:00:11.4]} 45. Bd6 {[%clk 0:00:17]} 45... Nd3+ {[%clk 0:00:10.1]} 46. Kg3
{[%clk 0:00:17.2]} 46... Re3 {[%clk 0:00:09]} 47. Rh5 {[%clk 0:00:15.4]} 47...
Nb2 {[%clk 0:00:07.1]} 48. Rh6+ {[%clk 0:00:14.7]} 48... Kg7 {[%clk 0:00:06.6]}
49. Be5+ {[%clk 0:00:14.9]} 49... Kf8 {[%clk 0:00:06]} 50. g6 {[%clk 0:00:13.6]}
50... Nc4 {[%clk 0:00:05.1]} 51. g7+ {[%clk 0:00:14.1]} 51... Kf7 {[%clk
0:00:05.6]} 52. Rh8 {[%clk 0:00:13.5]} 1-0

[Event "*** Titled Tuesday Blitz"]
[Site "Chess.com"]
[Date "2021.02.02"]
[Round "4"]
[White "Azde"]
[Black "GregShahade"]
[Result "1/2-1/2"]
[WhiteElo "2450"]
[BlackElo "2662"]
[TimeControl "180+1"]
[EndTime "10:42:35 PST"]
[Termination "Game drawn by repetition"]

1. d4 {[%clk 0:02:52.7]} 1... Nf6 {[%clk 0:02:59.1]} 2. c4 {[%clk 0:02:52.5]}
2... g6 {[%clk 0:02:59.5]} 3. Nc3 {[%clk 0:02:52.4]} 3... d5 {[%clk 0:02:59.8]}
4. Bf4 {[%clk 0:02:51.6]} 4... Bg7 {[%clk 0:02:59]} 5. e3 {[%clk 0:02:51.6]}
5... c5 {[%clk 0:02:58.6]} 6. dxc5 {[%clk 0:02:50.1]} 6... Qa5 {[%clk
0:02:58.6]} 7. Rc1 {[%clk 0:02:50.1]} 7... dxc4 {[%clk 0:02:57.7]} 8. Bxc4
{[%clk 0:02:49.4]} 8... O-O {[%clk 0:02:58.3]} 9. Nf3 {[%clk 0:02:49]} 9... Nbd7
{[%clk 0:02:58.2]} 10. O-O {[%clk 0:02:48.3]} 10... Nxc5 {[%clk 0:02:57.8]} 11.
Qe2 {[%clk 0:02:30.3]} 11... Be6 {[%clk 0:02:54.2]} 12. Rfd1 {[%clk 0:02:18.1]}
12... Rac8 {[%clk 0:02:43.9]} 13. Bxe6 {[%clk 0:02:10]} 13... Nxe6 {[%clk
0:02:44.8]} 14. Be5 {[%clk 0:02:06.9]} 14... Rfd8 {[%clk 0:02:43.3]} 15. Rxd8+
{[%clk 0:02:02.8]} 15... Rxd8 {[%clk 0:02:42.3]} 16. Rd1 {[%clk 0:02:02.9]}
16... Rxd1+ {[%clk 0:02:32.4]} 17. Qxd1 {[%clk 0:02:03.8]} 17... Qd8 {[%clk
0:02:24.3]} 18. Qxd8+ {[%clk 0:01:57.6]} 18... Nxd8 {[%clk 0:02:25.2]} 19. Kf1
{[%clk 0:01:51.6]} 19... Nc6 {[%clk 0:02:24.4]} 20. Ke2 {[%clk 0:01:43.2]} 20...
Nxe5 {[%clk 0:02:19.3]} 21. Nxe5 {[%clk 0:01:44.1]} 21... Ne4 {[%clk 0:02:08.8]}
22. Nxe4 {[%clk 0:01:38.6]} 22... Bxe5 {[%clk 0:02:08.9]} 23. b3 {[%clk
0:01:38.8]} 23... Kf8 {[%clk 0:01:57.7]} 24. f4 {[%clk 0:01:26.6]} 24... Bc7
{[%clk 0:01:46.9]} 25. Kd3 {[%clk 0:01:25]} 25... Ke8 {[%clk 0:01:46.2]} 26. g4
{[%clk 0:01:21.1]} 26... f6 {[%clk 0:01:42.2]} 27. h3 {[%clk 0:01:20.7]} 27...
b6 {[%clk 0:01:33.3]} 28. f5 {[%clk 0:01:15.9]} 28... gxf5 {[%clk 0:01:29]} 29.
gxf5 {[%clk 0:01:16.8]} 29... Kd7 {[%clk 0:01:29.4]} 30. Kd4 {[%clk 0:01:13.1]}
30... Kc6 {[%clk 0:01:28.1]} 31. a4 {[%clk 0:01:09.9]} 31... a6 {[%clk
0:01:28.3]} 32. Kc4 {[%clk 0:01:02.1]} 32... b5+ {[%clk 0:01:25.2]} 33. axb5+
{[%clk 0:01:02.1]} 33... axb5+ {[%clk 0:01:26.1]} 34. Kd3 {[%clk 0:01:00]} 34...
Bb6 {[%clk 0:01:17.8]} 35. Nc3 {[%clk 0:00:44.5]} 35... b4 {[%clk 0:01:01.6]}
36. Na4 {[%clk 0:00:29.7]} 36... Ba7 {[%clk 0:00:47]} 37. Ke4 {[%clk 0:00:27.9]}
37... Kd6 {[%clk 0:00:40.9]} 38. Nb2 {[%clk 0:00:27.8]} 38... e6 {[%clk
0:00:39.4]} 39. Nc4+ {[%clk 0:00:25.5]} 39... Kd7 {[%clk 0:00:38.6]} 40. Kf4
{[%clk 0:00:22.3]} 40... Bc5 {[%clk 0:00:36.1]} 41. e4 {[%clk 0:00:20.6]} 41...
Ke7 {[%clk 0:00:34.8]} 42. e5 {[%clk 0:00:18.8]} 42... fxe5+ {[%clk 0:00:27.5]}
43. Kxe5 {[%clk 0:00:19.7]} 43... exf5 {[%clk 0:00:27.6]} 44. Kxf5 {[%clk
0:00:20.6]} 44... Kf7 {[%clk 0:00:27.4]} 45. h4 {[%clk 0:00:20]} 45... Kg7
{[%clk 0:00:26.8]} 46. h5 {[%clk 0:00:19.2]} 46... Kh6 {[%clk 0:00:26.7]} 47.
Kg4 {[%clk 0:00:19.5]} 47... Kg7 {[%clk 0:00:27.1]} 48. Ne5 {[%clk 0:00:19.4]}
48... Bd6 {[%clk 0:00:24.4]} 49. Nd3 {[%clk 0:00:18.5]} 49... Kf6 {[%clk
0:00:24.3]} 50. Kh4 {[%clk 0:00:13.2]} 50... Kf5 {[%clk 0:00:24.2]} 51. Kh3
{[%clk 0:00:09.6]} 51... Ke4 {[%clk 0:00:24.4]} 52. Nxb4 {[%clk 0:00:08.9]}
52... Bxb4 {[%clk 0:00:23.7]} 53. Kg2 {[%clk 0:00:09.8]} 53... Kf4 {[%clk
0:00:22.7]} 54. Kh1 {[%clk 0:00:10.7]} 54... Kg5 {[%clk 0:00:23]} 55. Kg2 {[%clk
0:00:10.8]} 55... h6 {[%clk 0:00:23.2]} 56. Kh1 {[%clk 0:00:11.7]} 56... Kxh5
{[%clk 0:00:19.8]} 57. Kg2 {[%clk 0:00:12.6]} 57... Kg4 {[%clk 0:00:20.2]} 58.
Kh2 {[%clk 0:00:12.7]} 58... h5 {[%clk 0:00:20.6]} 59. Kg2 {[%clk 0:00:13.6]}
59... h4 {[%clk 0:00:21]} 60. Kh2 {[%clk 0:00:14.5]} 60... h3 {[%clk 0:00:19.7]}
61. Kh1 {[%clk 0:00:14.1]} 61... Kg3 {[%clk 0:00:19.1]} 62. Kg1 {[%clk 0:00:15]}
62... Bc5+ {[%clk 0:00:14.7]} 63. Kh1 {[%clk 0:00:15.9]} 63... Bb4 {[%clk
0:00:14.9]} 64. Kg1 {[%clk 0:00:15.7]} 64... Kf3 {[%clk 0:00:15.4]} 65. Kh1
{[%clk 0:00:16.6]} 65... Kg4 {[%clk 0:00:15.9]} 66. Kh2 {[%clk 0:00:16.9]} 66...
Kh4 {[%clk 0:00:16]} 67. Kh1 {[%clk 0:00:17.4]} 67... Kg3 {[%clk 0:00:16.5]}
1/2-1/2

[Event "*** Titled Tuesday Blitz"]
[Site "Chess.com"]
[Date "2021.02.02"]
[Round "4"]
[White "utsavp"]
[Black "Blitzking642"]
[Result "0-1"]
[WhiteElo "2296"]
[BlackElo "2469"]
[TimeControl "180+1"]
[EndTime "10:42:37 PST"]
[Termination "Blitzking642 won by checkmate"]

1. e4 {[%clk 0:03:00.9]} 1... c5 {[%clk 0:03:00]} 2. Nf3 {[%clk 0:02:59.8]} 2...
Nc6 {[%clk 0:03:00.4]} 3. Bc4 {[%clk 0:02:59.9]} 3... e6 {[%clk 0:02:59.8]} 4.
O-O {[%clk 0:02:54.6]} 4... Nf6 {[%clk 0:02:59.7]} 5. e5 {[%clk 0:02:52.4]} 5...
Ng4 {[%clk 0:02:58.3]} 6. Re1 {[%clk 0:02:50.9]} 6... Qc7 {[%clk 0:02:56.2]} 7.
Qe2 {[%clk 0:02:49.6]} 7... d6 {[%clk 0:02:47.6]} 8. exd6 {[%clk 0:02:47.6]}
8... Bxd6 {[%clk 0:02:48.5]} 9. h3 {[%clk 0:02:38.9]} 9... Nge5 {[%clk
0:02:29.1]} 10. Nxe5 {[%clk 0:02:36.5]} 10... Bxe5 {[%clk 0:02:30]} 11. Bb5
{[%clk 0:02:28.1]} 11... Bh2+ {[%clk 0:02:30]} 12. Kh1 {[%clk 0:02:26.9]} 12...
Bd6 {[%clk 0:02:30.9]} 13. Nc3 {[%clk 0:02:22.1]} 13... O-O {[%clk 0:02:31]} 14.
Bxc6 {[%clk 0:02:18.4]} 14... Qxc6 {[%clk 0:02:29.1]} 15. d3 {[%clk 0:02:14.5]}
15... b6 {[%clk 0:02:26.5]} 16. Ne4 {[%clk 0:02:11.9]} 16... Bb7 {[%clk
0:02:26.5]} 17. f4 {[%clk 0:01:48.7]} 17... Bc7 {[%clk 0:02:15.1]} 18. Be3
{[%clk 0:01:38.8]} 18... Rae8 {[%clk 0:02:12.4]} 19. Ng5 {[%clk 0:01:31.2]}
19... f5 {[%clk 0:01:27.4]} 20. Nf3 {[%clk 0:01:21.9]} 20... e5 {[%clk
0:01:27.8]} 21. Qd2 {[%clk 0:01:10.6]} 21... Qg6 {[%clk 0:00:49.2]} 22. Nxe5
{[%clk 0:01:00.6]} 22... Bxe5 {[%clk 0:00:49]} 23. fxe5 {[%clk 0:01:00.3]} 23...
f4 {[%clk 0:00:48.9]} 24. Bg1 {[%clk 0:00:42.9]} 24... f3 {[%clk 0:00:48.5]} 25.
Re3 {[%clk 0:00:34.3]} 25... f2 {[%clk 0:00:40.6]} 26. Re4 {[%clk 0:00:16.3]}
26... Bxe4 {[%clk 0:00:33.3]} 27. dxe4 {[%clk 0:00:17.2]} 27... fxg1=Q+ {[%clk
0:00:26.4]} 28. Rxg1 {[%clk 0:00:17.7]} 28... Qxe4 {[%clk 0:00:25.2]} 29. e6
{[%clk 0:00:16.6]} 29... Qxe6 {[%clk 0:00:23]} 30. Rd1 {[%clk 0:00:14.8]} 30...
h6 {[%clk 0:00:20.2]} 31. Qc3 {[%clk 0:00:12]} 31... Kh8 {[%clk 0:00:16]} 32. a4
{[%clk 0:00:09.1]} 32... Qf6 {[%clk 0:00:16.3]} 33. Qg3 {[%clk 0:00:08.5]} 33...
Rd8 {[%clk 0:00:15.6]} 34. Re1 {[%clk 0:00:07.7]} 34... Rfe8 {[%clk 0:00:15.3]}
35. Rg1 {[%clk 0:00:05.8]} 35... Qe5 {[%clk 0:00:14.3]} 36. Qg4 {[%clk
0:00:04.6]} 36... Qxb2 {[%clk 0:00:12.7]} 37. Qg6 {[%clk 0:00:05.5]} 37... Qf6
{[%clk 0:00:11.8]} 38. Qg4 {[%clk 0:00:04.1]} 38... Re5 {[%clk 0:00:09.8]} 39.
Qg3 {[%clk 0:00:05]} 39... Rde8 {[%clk 0:00:09.6]} 40. Qh4 {[%clk 0:00:04.8]}
40... Qxh4 {[%clk 0:00:08.4]} 41. Kh2 {[%clk 0:00:04.6]} 41... Re2 {[%clk
0:00:07.8]} 42. c4 {[%clk 0:00:04.2]} 42... Qf2 {[%clk 0:00:07.5]} 43. Kh1
{[%clk 0:00:03.7]} 43... R8e3 {[%clk 0:00:06.5]} 44. h4 {[%clk 0:00:02.9]} 44...
Rh3+ {[%clk 0:00:06.7]} 45. gxh3 {[%clk 0:00:01.8]} 45... Qh2# {[%clk
0:00:07.6]} 0-1